Cogmind - Beta 9.3 @@@ ROGUE MODE // 2019.12.28 @ 13:33:33 // Winter2019/RPGLIKE Player: BadAss McGhee Result: Destroyed by L-41 Fighter with Axe Performance ------------- Evolutions (3) 1500 Regions Visited (4) 800 Robots Destroyed (40) 200 Value Destroyed (980) 980 Prototype IDs (0) 0 Alien Tech Used (0) 0 Bonus (0) 0 TOTAL SCORE: 3480 Bonus ------- None Cogmind --------- Core Integrity 0/650 Matter 310/350 Energy 190/190 System Corruption 0% Temperature Cool (0) Movement Walking (130) Location -7/Factory Parts ------- > --- POWER (1) -------- Light Deuterium Engine > --- PROPULSION (2) --- Titanium Leg Titanium Leg > --- UTILITY (4) ------ Structural Scanner Improved Signal Interpreter Hacking Suite > --- WEAPON (3) ------- Gauss Rifle Gauss Rifle Katana > --- INVENTORY (5) ---- Nuclear Core Titanium Leg Lightning Gun Rocket Launcher Remote Datajack Peak State ------------ > --- POWER ------------ Light Deuterium Engine > --- PROPULSION ------- Titanium Leg Titanium Leg > --- UTILITY ---------- Structural Scanner Improved Signal Interpreter Hardened Medium Armor Plating Hacking Suite > --- WEAPON ----------- Gauss Rifle Gauss Rifle Remote Datajack > --- INVENTORY -------- Nuclear Core Titanium Leg Lightning Gun Rocket Launcher Katana [Rating: 31] Favorites ----------- Power Ion Engine Engine Ion Engine Power Core Nuclear Core Propulsion Light Treads Treads Light Treads Leg Titanium Leg Utility Structural Scanner Device Structural Scanner Processor Signal Interpreter Hackware Hacking Suite Protection Hardened Medium Armor Plating Weapon Assault Rifle Energy Gun Particle Gun Ballistic Gun Assault Rifle Launcher Rocket Launcher Special Weapon Remote Datajack Slashing Weapon Katana Build | -11 -10 -9 -8 -7 ------- Run | Scr Mat Mat Mat Fac Slots Evolved 6 | 2 . 1 1 2 Power . | . . . . . Propulsion 1 | 1 . . . . Utility 3 | . . 1 1 1 Weapon 2 | 1 . . . 1 Parts Attached 33 | 4 4 15 6 4 Power 5 | 1 1 2 1 . Engine 4 | 1 1 1 1 . Core 1 | . . 1 . . Reactor . | . . . . . Propulsion 5 | 2 1 2 . . Treads 3 | 2 1 . . . Leg 2 | . . 2 . . Wheel . | . . . . . Hover . | . . . . . Flight . | . . . . . Utility 6 | . 1 3 1 1 Device 2 | . . 2 . . Storage . | . . . . . Processor 2 | . 1 1 . . Hackware 1 | . . . 1 . Protection 1 | . . . . 1 Artifact . | . . . . . Weapon 17 | 1 1 8 4 3 Energy Gun 1 | . . . 1 . Energy Cannon . | . . . . . Ballistic Gun 9 | 1 1 4 3 . Ballistic Cannon . | . . . . . Launcher 5 | . . 4 . 1 Special Weapon 1 | . . . . 1 Impact Weapon . | . . . . . Slashing Weapon 1 | . . . . 1 Piercing Weapon . | . . . . . Special Melee Weapon . | . . . . . Unidentified Prototypes . | . . . . . Parts Lost . | . . . . . Power . | . . . . . Propulsion . | . . . . . Utility . | . . . . . Weapon . | . . . . . Highest Loss Streak . | . . . . . Average Slot Usage (%) 95 | . 90 99 98 99 Engine 11 | . 15 5 10 10 Core 2 | . . 8 1 . Treads 17 | . 32 11 . . Leg 11 | . . 16 25 20 Device 7 | . . 13 12 10 Processor 13 | . 15 14 12 10 Hackware 2 | . . . 11 10 Protection 1 | . . . . 9 Ballistic Gun 23 | . 23 26 21 20 Launcher 1 | . . 1 . 7 Naked Turns . | . . . . . Heaviest Build 26 | 7 8 15 14 26 Greatest Support 45 | 45 45 45 39 39 Greatest Overweight (x) 1 | . . 1 . . Average Overweight (x) . | . . . . . Largest Inventory Capacity 5 | 3 3 4 5 5 Average Capacity 3 | 3 3 3 5 5 Most Carried 5 | 3 3 4 5 5 Average Carried 3 | 1 2 3 4 4 Final Capacity 5 | 3 3 4 5 5 Final Carried 5 | 2 3 4 5 5 Class Distribution -------------------- 50% | Mutant 47% | Skirmisher Dominant Class ---------------- Mutant | -10/Materials Skirmisher | -9/Materials Skirmisher | -8/Materials Skirmisher | -7/Factory Resources | -11 -10 -9 -8 -7 ----------- Run | Scr Mat Mat Mat Fac Matter Collected 982 | 240 176 269 297 . Remotely . | . . . . . Salvage Created 1083 | . 322 372 329 60 Parts 90 | . 25 39 22 4 Haulers Intercepted . | . . . . . Recyclers Shooed 1 | . 1 . . . Parts Field Recycled . | . . . . . Retrieved Matter . | . . . . . Parts Self-Destructed . | . . . . . Prevented . | . . . . . Kills | -11 -10 -9 -8 -7 ------- Run | Scr Mat Mat Mat Fac Combat Hostiles Destroyed 38 | . 13 14 10 1 Melee 1 | . . . . 1 Guns 31 | . 13 8 10 . AOE 6 | . . 6 . . Classes Destroyed 7 | . 2 4 1 . Worker 1 | . . 1 . . Builder 1 | . . 1 . . Swarmer 19 | . 9 6 4 . Grunt 15 | . 4 5 5 1 Brawler 1 | . . 1 . . Duelist 1 | . . . 1 . Sentry 2 | . . 2 . . Best Kill Streak 6 | . 3 4 6 1 Combat Bots Only 6 | . 3 4 6 1 Max Kills in Single Turn 3 | . 1 3 1 1 Gunslinging . | . . . . . Exploded 3 | . . 3 . . Melee 1 | . . . . 1 Uniques/NPCs Destroyed . | . . . . . Combat | -11 -10 -9 -8 -7 -------- Run | Scr Mat Mat Mat Fac Damage Taken 1943 | . 521 281 815 326 Core 1579 | . 416 218 690 255 Absorbed by Shields . | . . . . . Redirected to Core 1224 | . 334 198 437 255 Core Remaining (%) 66 | 100 43 87 35 . Volleys Fired 109 | . 47 29 33 . Largest 2 | . 2 2 2 . Hottest 88 | . 40 43 88 . Shots Fired 161 | . 64 44 53 . Gun 158 | . 64 41 53 . Cannon . | . . . . . Launcher 3 | . . 3 . . Special . | . . . . . Kinetic 157 | . 64 41 52 . Thermal 1 | . . . 1 . Explosive 3 | . . 3 . . Electromagnetic . | . . . . . Robot Hit Streak 12 | . 12 12 9 . Robot Miss Streak 2 | . 2 1 2 . Penetration Max . | . . . . . Secondary Targets 2 | . 1 . 1 . Max Gunslinging Chain 1 | . 1 . 1 . Shots Hit Robots 125 | . 43 32 40 10 Core Hits 63 | . 20 22 19 2 Critical Hits 1 | . . . 1 . Critical Kills . | . . . . . Critical Parts Destroyed 1 | . . . 1 . Melee Attacks 11 | . . . . 11 Impact . | . . . . . Slashing 11 | . . . . 11 Piercing . | . . . . . Sneak Attacks . | . . . . . Combat Hostiles . | . . . . . Follow-up Attacks . | . . . . . Damage Inflicted 1955 | . 480 722 502 251 Guns 1373 | . 480 391 502 . Cannons . | . . . . . Explosions 331 | . . 331 . . Melee 251 | . . . . 251 Ramming . | . . . . . Kinetic 1360 | . 480 391 489 . Thermal 13 | . . . 13 . Explosive 331 | . . 331 . . Electromagnetic . | . . . . . Impact . | . . . . . Slashing 251 | . . . . 251 Piercing . | . . . . . Highest Corruption . | . . . . . Average Corruption . | . . . . . Corruption Purged . | . . . . . Overload Shots . | . . . . . Overflow Damage 16 | . . . . 16 Projectiles . | . . . . . Explosions . | . . . . . Melee 16 | . . . . 16 Knockbacks . | . . . . . Impact . | . . . . . Kinetic . | . . . . . Secondary . | . . . . . Self-Inflicted Damage . | . . . . . Shots . | . . . . . Rammed . | . . . . . Targets Rammed . | . . . . . Kicked . | . . . . . Crushed . | . . . . . Highest Temperature 2 | . 2 . . . Average Temperature 2 | . 2 . . . Received Heat Transfer 510 | . 126 51 333 . Siege Activations . | . . . . . Robots Corrupted . | . . . . . Combat Hostiles . | . . . . . Parts Fried . | . . . . . Impact Corruptions . | . . . . . Robots Melted . | . . . . . Combat Hostiles . | . . . . . Parts Melted . | . . . . . Heat Transferred 37 | . . . 37 . Parts Sabotaged . | . . . . . Parts Stolen . | . . . . . Parts Stripped . | . . . . . Power Chain Reactions . | . . . . . Missiles Intercepted . | . . . . . Alert | -11 -10 -9 -8 -7 ------- Run | Scr Mat Mat Mat Fac Peak Influence 373 | . 180 302 373 189 Average Influence 134 | . 56 196 238 170 Maximum Alert Level 1 | . . 1 1 . Low Security (%) 76 | 100 100 45 38 100 Level 1 23 | . . 54 61 . Level 2 . | . . . . . Level 3 . | . . . . . Level 4 . | . . . . . Level 5 . | . . . . . High Security . | . . . . . Max Security . | . . . . . Squads Dispatched 5 | . 2 2 1 . Investigation 2 | . 1 . 1 . Extermination . | . . . . . Reinforcement 3 | . 1 2 . . Assault . | . . . . . Garrison . | . . . . . Intercept . | . . . . . Construction Impeded . | . . . . . Haulers Reinforced . | . . . . . Stealth | -11 -10 -9 -8 -7 --------- Run | Scr Mat Mat Mat Fac Distress Signals 1 | . . . 1 . Communications Jammed . | . . . . . Distress Signals . | . . . . . Times Spotted 78 | . 23 24 26 5 Peak Tracking Total 9 | . 6 6 9 4 Tactical Retreats 13 | . 2 4 7 . Traps | -11 -10 -9 -8 -7 ------- Run | Scr Mat Mat Mat Fac Traps Triggered 2 | . 2 . . . Indirectly . | . . . . . Trap Hack Attempts . | . . . . . Triggered . | . . . . . Disarmed . | . . . . . Reprogrammed . | . . . . . Reused . | . . . . . Traps Extracted . | . . . . . Installed . | . . . . . Triggered . | . . . . . Machines | -11 -10 -9 -8 -7 ---------- Run | Scr Mat Mat Mat Fac Machines Disabled 1 | . . 1 . . Max in Single Turn 1 | . . 1 . . Machines Sabotaged . | . . . . . Garrisons Compromised . | . . . . . Overloaded Fab Kills . | . . . . . Fab Network Shutdowns . | . . . . . Hacking | -11 -10 -9 -8 -7 --------- Run | Scr Mat Mat Mat Fac Machines Accessed 7 | . 4 2 1 . Terminals 6 | . 3 2 1 . Fabricators . | . . . . . Repair Stations 1 | . 1 . . . Recycling Units . | . . . . . Scanalyzers . | . . . . . Garrison Access . | . . . . . Total Hacks 15 | . 9 3 3 . Successful 9 | . 6 1 2 . Failed 6 | . 3 2 1 . Catastrophic . | . . . . . Database Lockouts . | . . . . . Manual . | . . . . . Terminals 14 | . 8 3 3 . Fabricators . | . . . . . Repair Stations 1 | . 1 . . . Recycling Units . | . . . . . Scanalyzers . | . . . . . Garrison Access . | . . . . . Terminal Hacks 8 | . 5 1 2 . Record 3 | . 1 1 1 . Emergency Access Points 1 | . 1 . . . Alert Level 3 | . 2 . 1 . Zone Layout 1 | . 1 . . . Fabricator Hacks . | . . . . . Repair Station Hacks 1 | . 1 . . . Scan Component 1 | . 1 . . . Recycling Unit Hacks . | . . . . . Scanalyzer . | . . . . . Garrison Access Hacks . | . . . . . Unauthorized Hacks . | . . . . . Terminals . | . . . . . Fabricators . | . . . . . Repair Stations . | . . . . . Recycling Units . | . . . . . Scanalyzers . | . . . . . Garrison Access . | . . . . . Data Cores Recovered . | . . . . . Used . | . . . . . Hacking Detections 5 | . 3 1 1 . Full Trace Events 2 | . 1 . 1 . Feedback Events . | . . . . . Feedback Blocked . | . . . . . Robot Schematics Acquired . | . . . . . Robots Built . | . . . . . Matter . | . . . . . Time . | . . . . . Total Robot Build Rating . | . . . . . Part Schematics Acquired . | . . . . . Parts Built . | . . . . . Matter . | . . . . . Time . | . . . . . Total Part Build Rating . | . . . . . Parts Repaired . | . . . . . Time . | . . . . . Parts Recycled . | . . . . . Recycled Matter . | . . . . . Retrieved Matter . | . . . . . Retrieved Components . | . . . . . Parts Scanalyzed . | . . . . . Part Schematics Acquired . | . . . . . Parts Damaged . | . . . . . Bothacking | -11 -10 -9 -8 -7 ------------ Run | Scr Mat Mat Mat Fac Used RIF Installer . | . . . . . Robots Hacked . | . . . . . Non-combat . | . . . . . Combat . | . . . . . Robot Hacks Applied . | . . . . . Relay Couplers Released . | . . . . . Robots Rewired . | . . . . . Allies Hacked . | . . . . . Hacks Repelled . | . . . . . Allies | -11 -10 -9 -8 -7 -------- Run | Scr Mat Mat Mat Fac Total Allies . | . . . . . Largest Group . | . . . . . Highest-Rated Group . | . . . . . Highest-Rated Ally . | . . . . . Total Orders . | . . . . . Ally Attacks . | . . . . . Total Damage . | . . . . . Kills . | . . . . . Allies Corrupted . | . . . . . Allies Melted . | . . . . . Intel | -11 -10 -9 -8 -7 ------- Run | Scr Mat Mat Mat Fac Robot Analysis Total . | . . . . . Derelict Logs Recovered . | . . . . . Drone Launches . | . . . . . Drone Recoveries . | . . . . . Exploration | -11 -10 -9 -8 -7 ------------- Run | Scr Mat Mat Mat Fac Turns Passed 2472 | 98 999 717 323 335 Spaces Moved 1356 | 63 532 406 139 216 Core 11 | 10 . 1 . . Treads 706 | 53 532 121 . . Legs 639 | . . 284 139 216 Wheels . | . . . . . Hover . | . . . . . Flight . | . . . . . Fastest Speed 50 | 50 160 100 130 130 Average Speed 145 | 142 160 138 130 130 Slowest Speed 160 | 160 160 160 130 130 Overloaded Moves . | . . . . . Propulsion Burnouts . | . . . . . Robots Hopped . | . . . . . Cave-ins Triggered . | . . . . . Exploration Rate (%) 32 | 4 97 40 15 7 Regions Visited 4 Branch Regions . Pre-discovered Areas . | . . . . . Known Exits Taken 3 | . 1 1 1 . Unknown Exits Taken 1 | 1 . . . . Scrap Searched . | . . . . . Spaces Dug . | . . . . . Terrain Destroyed 21 | . . 21 . . Melee . | . . . . . Projectile . | . . . . . AOE 21 | . . 21 . . Actions | -11 -10 -9 -8 -7 --------- Run | Scr Mat Mat Mat Fac Total 1689 | 71 619 517 229 253 Wait 98 | . 28 26 26 18 Move 1352 | 62 531 405 138 216 Hop . | . . . . . Pick Up 26 | 5 5 9 4 3 Fast Attach 11 | 1 2 3 5 . Attach 11 | 3 2 3 1 2 Detach . | . . . . . Swap 11 | . . 9 . 2 Drop 19 | . 2 10 6 1 Fire 109 | . 47 29 33 . Melee 11 | . . . . 11 Ram . | . . . . . Kick . | . . . . . Crush . | . . . . . Escape Stasis . | . . . . . Rewire . | . . . . . Trap . | . . . . . Miscellaneous 41 | . 2 23 16 . Route ------- -11/Scrapyard -10/Materials (discovered 5 exits: *Mat x3 / *Min x2) -9/Materials (discovered 2 exits: *Mat x2) -8/Materials -7/Factory History --------- Turn | Location | Event 1 | -11/Scrapyard | Upgraded with Propulsion slot (x1) 1 | -11/Scrapyard | Upgraded with Weapon slot (x1) 18 | -11/Scrapyard | Discovered new exit (range 17) 99 | -11/Scrapyard | Entered Materials 310 | -10/Materials | Build established: Mutant 424 | -10/Materials | Discovered new exit (range 3) 487 | -10/Materials | Discovered new exit (range 8) 640 | -10/Materials | Discovered new exit (range 9) 678 | -10/Materials | Discovered new exit (range 10) 691 | -10/Materials | Identified exit to Mines 798 | -10/Materials | Core integrity fell below 50% 955 | -10/Materials | Reached level 2 976 | -10/Materials | Discovered new exit (range 3) 1096 | -10/Materials | Identified exit to Materials 1098 | -10/Materials | Entered another Materials area 1099 | -9/Materials | Core integrity fell below 50% 1100 | -9/Materials | Reached level 3 1103 | -9/Materials | Upgraded with Utility slot (x1) 1436 | -9/Materials | Build established: Skirmisher 1598 | -9/Materials | Discovered new exit (range 13) 1647 | -9/Materials | Identified exit to Materials 1674 | -9/Materials | Reached level 4 1806 | -9/Materials | Discovered exit to Materials (range 3) 1815 | -9/Materials | Entered another Materials area 1817 | -8/Materials | Reached level 5 1830 | -8/Materials | Upgraded with Utility slot (x1) 2019 | -8/Materials | Core integrity fell below 50% 2035 | -8/Materials | Core integrity fell below 20% 2073 | -8/Materials | Reached level 6 2121 | -8/Materials | Discovered new exit (range 10) 2137 | -8/Materials | Identified exit to Factory 2138 | -8/Materials | Entered Factory 2139 | -7/Factory | Core integrity fell below 50% 2140 | -7/Factory | Reached level 7 2140 | -7/Factory | Upgraded with Utility slot (x1) 2140 | -7/Factory | Upgraded with Weapon slot (x1) 2458 | -7/Factory | Core integrity fell below 20% 2473 | -7/Factory | Destroyed by L-41 Fighter with Axe Last Messages --------------- 02121_ EXIT=FOUND 02124_ K-01 Serf collects debris. 02129_ Acquired 20 matter. 02131_ K-01 Serf collects debris. 02137_ EXIT=IDENTIFIED: FACTORY LOCATION=FACTORY GOAL=ESCAPE 02140_ Reached level 7. 02140_ Upgraded: Utility Slot (+1) 02140_ Upgraded: Weapon Slot (+1) 02140_ Upgraded: Ranged Accuracy (+5) 02140_ Upgraded: KI Damage % (+5) 02170_ Acquired Lightning Gun. 02206_ Acquired Weapon Cycler. 02293_ Connecting with Terminal... 02385_ Dropped Weapon Cycler. 02387_ Acquired Remote Datajack. 02446_ G-47 Trooper destroyed. 02457_ Hrd. Medium Armor Plating severed. 02466_ Destroyed Imp. Deuterium Engine. Map ----- +----------------------------------------------------+ | ??????????????????????????????????????????? | | ????????? ????????????????????????????? | | ??? ##### #??? ???????????????????????? | | ??# #??? "??????????????????????? | | ??# #??? ??????????????????????? | | "## #??? ??????????????????????? | | #??#/###+##?????????????????? | | ? #?? ??????????????????? | | ? #?# ???????????????????? | | ^ =!!#?# ????????????????????? | | """"" =!!#?# ?????????????????????? | | """"" =!!#?# #??#####??????????????? | | """"" #?# #?? #??????????????? | | """"" ^ #?# #?? #??????????????? | | ### #?? #??????????????? | | #""" #??????????????? | | #""" +??????????????? | | #""" !#??????????????? | | ###+############# #? #??????????????? | | # #???# #"" [ #??????????????? | | # ! #???# #"" #??????????????? | | # #???# #""" #??????????????? | | # #???# #""" #??????????????? | | # #???# #""" #??????????????? | | # #???# # ! #??????????????? | | # #???# # ]=%@ #??????????????? | | ################# ####l####?????????????? | | r* #?????????????? | | ^ #?????????????? | | """ ^^ +?????????????? | | """ ^ #?????????????? | | """ #?????????????? | | #################+##+#?????????????? | | " """ #??????????????????????????????????? | | " """ ##############?????????????????????? | | " """ # #?????????????????????? | | # #?????????????????????? | | # #?????????????????????? | | # #?????????????????????? | | ## # """" """" #?????????????????????? | | ?# # """" """" #?????????????????????? | | ?# # """" """" #?????????????????????? | | ?# # """" """" #?????????????????????? | | ?# # """" """" #?????????????????????? | | ?# # """" """" #?????????????????????? | | ?# # #?????????????????????? | | ?# # #?????????????????????? | | ?# #####+########?????????????????????? | | ?# #?????????????????????????? | | ?# #?????????????????????????? | +----------------------------------------------------+ Best States ------------- Heat Dissipation 43 Energy Generation 14 Energy Capacity 290 Matter Stores 350 Matter Capacity 350 Sight Range 17 Robot Scan Range 12 Terrain Scan Density 410 Armor Coverage 225 Evasion (%) 50 Recoil Reduction 2 Offensive Hacking 10 Item Schematics ----------------- None Robot Schematics ------------------ None Fabricated ------------ Nothing Alien Tech Used ----------------- None Achievements -------------- None Challenges ------------ None RPGLIKE | -11 -10 -9 -8 -7 --------- Run | Scr Mat Mat Mat Fac Levels Raised 6 | . 1 2 2 1 XP Earned 12175 | 3000 1550 3375 2650 1600 XP Spent 11980 | 3000 . 2955 3025 3000 Upgrades 34 | 12 . 10 8 4 Propulsion Slot 1 | 1 . . . . Utility Slot 3 | . . 1 1 1 Weapon Slot 2 | 1 . . . 1 Core Integrity 1 | 1 . . . . Heat Dissipation 3 | . . 3 . . Energy Storage 1 | . . . 1 . Matter Storage 1 | . . . 1 . Mass Support 1 | 1 . . . . Inventory Capacity 5 | 3 . 1 1 . Sight Range 1 | 1 . . . . Sensor Range 6 | 3 . 2 1 . Terrain Scan Density 4 | 1 . 1 2 . Ranged Accuracy 3 | . . 2 . 1 KI Damage % 2 | . . . 1 1 Protomatter Created 374 | . 70 177 127 . Integrity Restored 903 | . 48 504 351 . Core 903 | . 48 504 351 . Protomatter Decayed 73 | . 54 9 10 . Game ------ Seed LobotomyHeavySuperbattery Manual? 0 Play Time 00:37:42 Cumulative 56.0 hours Start 2019.12.28 @ 12:53:42 End 2019.12.28 @ 13:33:33 Sessions 1 Manual Loads 0 Difficulty Rogue Special Mode Winter2019/RPGLIKE Game No. 64 Rogue 64 Adventurer 0 Explorer 0 Win Type - Total 0 Types 0/0/0/0/0/0/0 Lore% 11 Gallery% 28 Achievement% 17 Wizard Run 0 Options --------- ASCII 0 Keyboard 0 Movement Mouse Keybinds 0 Fullscreen 1 Font 18/SmallcapsGlow Map View 76x50 Tactical HUD 1 Map Filters NONE Filters NONE Steam 1 RUN: 2aa804e3-146b-4430-ba1a-a784697e261f